fUST/lending_fUST_20250909
["ID","MTS","AMOUNT","RATE_DAILY","PERIOD"]
[384455527,1757424649168,-480.0,0.00013698,2]
[384455528,1757424649177,-1052.53,0.00013698,2]
[384455529,1757424649186,-5386.23,0.00013698,2]
[384455530,1757424649196,-480.0,0.00013698,2]
[384455531,1757424649205,-480.0,0.00013698,2]
[384455532,1757424649214,-4875.75,0.00013698,2]
[384455533,1757424649223,-480.0,0.00013698,2]
[384455534,1757424649232,-480.0,0.00013698,2]
[384455535,1757424649241,-480.0,0.00013698,2]
[384455536,1757424649250,-480.0,0.00013698,2]
[384455537,1757424649259,-480.0,0.00013698,2]
[384455538,1757424649269,-2091.95,0.00013698,2]
[384455539,1757424649278,-480.0,0.00013698,2]
[384455540,1757424649287,-1144.03,0.00013698,2]
[384455541,1757424649300,-480.0,0.00013698,2]
[384455542,1757424649312,-491.99,0.00013698,2]
[384455543,1757424649321,-480.0,0.00013698,2]
[384455544,1757424649330,-151.0,0.00013698,2]
[384455545,1757424649339,-151.0,0.00013698,2]
[384455546,1757424649348,-151.0,0.00013698,2]
[384455547,1757424649358,-151.0,0.00013698,2]
[384455548,1757424649367,-151.0,0.00013698,2]
[384455549,1757424649376,-151.0,0.00013698,2]
[384455550,1757424649385,-151.0,0.00013698,2]
[384455551,1757424649395,-151.0,0.00013698,2]
[384455552,1757424649404,-151.0,0.00013698,2]
[384455553,1757424649413,-151.0,0.00013698,2]
[384455554,1757424649423,-151.0,0.00013698,2]
[384455555,1757424649432,-480.0,0.00013698,2]
[384455556,1757424649441,-151.0,0.00013698,2]
[384455557,1757424649450,-480.0,0.00013698,2]
[384455558,1757424649459,-151.0,0.00013698,2]
[384455559,1757424649468,-296.39818172,0.00013698,2]
[384455560,1757424649477,-3029.88,0.00013698,2]
[384455561,1757424649486,-912.57,0.00013698,2]
[384455562,1757424649495,-480.0,0.00013698,2]
[384455563,1757424649504,-609.22,0.00013698,2]
[384455564,1757424649514,-480.0,0.00013698,2]
[384455565,1757424649523,-480.0,0.00013698,2]
[384455566,1757424649532,-570.69,0.00013698,2]
[384455567,1757424649542,-3017.79,0.00013698,2]
[384455568,1757424649551,-480.0,0.00013698,2]
[384455569,1757424649562,-354.33,0.00013698,2]
[384455570,1757424649571,-310.25599724,0.00013698,2]
[384455571,1757424649581,-480.0,0.00013698,2]
[384455572,1757424649590,-500.0,0.00013698,2]
[384455573,1757424649599,-208.1287366,0.00013699,2]
[384455574,1757424649609,-151.0,0.00013699,2]
[384455575,1757424649618,-151.0,0.00013699,2]
[384455576,1757424649627,-1112.951585,0.00013699,2]
[384455577,1757424649637,-151.361299,0.00013699,2]
[384455578,1757424649646,-433.43878493,0.00013699,2]
[384455579,1757424649655,-2183.31810187,0.00013701,2]
[384455580,1757424649664,-160.0,0.00013726,2]
[384455581,1757424649674,-344.372,0.00013751,2]
[384455582,1757424649687,-2264.10087164,0.00013756,2]
[384455583,1757424649696,-3917.0,0.00013805,2]
[384455584,1757424649706,-2004.89267746,0.00013811,2]
[384455585,1757424649716,-2236.99280923,0.00013867,2]
[384455586,1757424649727,-182.27040103,0.00013872,2]
[384455587,1757424649736,-5942.02450684,0.00013872,2]
[384455588,1757424649745,-5453.9441771,0.00013873,2]
[384455589,1757424649755,-31278.1996601,0.00013873,2]
[384455590,1757424649765,-8827.9511721,0.00013873,2]
[384455591,1757424649775,-3148.9007674,0.00013873,2]
[384455592,1757424649784,-151.0,0.00013873,2]
[384455593,1757424649793,-151.0,0.00013873,2]
[384455594,1757424649803,-151.0,0.00013873,2]
[384455595,1757424649816,-409.0,0.00013874,2]
[384455596,1757424649826,-429.6,0.00013874,2]
[384455597,1757424649836,-976.0,0.00013874,2]
[384455598,1757424649846,-151.0,0.000139,2]
[384455599,1757424649855,-402.2793781,0.000139,2]
[384455600,1757424649864,-199.6826772,0.000139,2]
[384455601,1757424649874,-169.1944667,0.000139,2]
[384455602,1757424649883,-153.0,0.000139,2]
[384455603,1757424649894,-205.74199727,0.00013946,2]
[384455604,1757424649903,-822.143,0.0001395,2]
[384455605,1757424649913,-300.0,0.00013971,2]
[384455606,1757424649923,-300.0,0.00013971,2]
[384455607,1757424649932,-300.0,0.00013971,2]
[384455608,1757424649942,-300.0,0.00013971,2]
[384455609,1757424649951,-300.0,0.00013971,2]
[384455610,1757424649960,-300.0,0.00013971,2]
[384455611,1757424649970,-300.0,0.00013971,2]
[384455612,1757424649979,-300.0,0.00013971,2]
[384455613,1757424649988,-300.0,0.00013971,2]
[384455614,1757424649997,-300.0,0.00013971,2]
[384455615,1757424650007,-300.0,0.00013971,2]
[384455616,1757424650016,-300.0,0.00013971,2]
[384455617,1757424650025,-300.0,0.00013971,2]
[384455618,1757424650034,-300.0,0.00013971,2]
[384455619,1757424650044,-300.0,0.00013971,2]
[384455620,1757424650053,-600.0,0.00013971,2]
[384455621,1757424650068,-2828.86,0.00013971,2]
[384455622,1757424650077,-500.0,0.00013972,2]
[384455623,1757424650087,-500.0,0.00013972,2]
[384455624,1757424650097,-480.0,0.00013972,2]
[384455625,1757424650107,-480.0,0.00013972,2]
[384455626,1757424650116,-480.0,0.00013972,2]
[384455627,1757424650126,-480.0,0.00013972,2]
[384455628,1757424650135,-480.0,0.00013972,2]
[384455629,1757424650144,-471.66,0.00013972,2]
[384455630,1757424650154,-480.0,0.00013972,2]
[384455631,1757424650164,-480.0,0.00013972,2]
[384455632,1757424650174,-480.0,0.00013972,2]
[384455633,1757424650184,-480.0,0.00013972,2]
[384455634,1757424650194,-480.0,0.00013972,2]
[384455635,1757424650203,-480.0,0.00013972,2]
[384455636,1757424650212,-458.06393002,0.00013972,2]
[384455637,1757424650222,-1832.25572009,0.00013972,2]
[384455638,1757424650231,-4118.45279482,0.00013972,2]
[384455639,1757424650241,-480.0,0.00013972,2]
[384455640,1757424650251,-480.0,0.00013972,2]
[384455641,1757424650260,-480.0,0.00013972,2]
[384455642,1757424650271,-487.47,0.00013972,2]
[384455643,1757424650282,-1424.19,0.00013972,2]
[384455644,1757424650291,-518.01,0.00013972,2]
[384455645,1757424650303,-576.26,0.00013972,2]
[384455646,1757424650316,-480.0,0.00013972,2]
[384455647,1757424650326,-741.34,0.00013972,2]
[384455648,1757424650336,-480.0,0.00013972,2]
[384455649,1757424650346,-381.74471758,0.00013972,2]
[384455650,1757424650355,-1526.9788703,0.00013972,2]
[384455651,1757424650365,-480.0,0.00013972,2]
[384455652,1757424650375,-3432.26675572,0.00013972,2]
[384455653,1757424650385,-480.0,0.00013972,2]
[384455654,1757424650395,-480.0,0.00013972,2]
[384455655,1757424650404,-451.03170501,0.00013972,2]
[384455656,1757424650414,-480.0,0.00013972,2]
[384455657,1757424650423,-480.0,0.00013972,2]
[384455658,1757424650432,-480.0,0.00013972,2]
[384455659,1757424650441,-480.0,0.00013972,2]
[384455660,1757424650450,-1545.06,0.00013972,2]
[384455661,1757424650460,-480.0,0.00013972,2]
[384455662,1757424650470,-480.0,0.00013972,2]
[384455663,1757424650479,-480.0,0.00013972,2]
[384455664,1757424650488,-480.0,0.00013972,2]
[384455665,1757424650497,-480.0,0.00013972,2]
[384455666,1757424650507,-238.48303234,0.00013972,2]
[384455667,1757424650517,-480.0,0.00013972,2]
[384455668,1757424650526,-480.0,0.00013972,2]
[384455669,1757424650535,-480.0,0.00013972,2]
[384455670,1757424650544,-480.0,0.00013972,2]
[384455671,1757424650554,-480.0,0.00013972,2]
[384455672,1757424650566,-480.0,0.00013972,2]
[384455673,1757424650575,-480.0,0.00013972,2]
[384455674,1757424650585,-480.0,0.00013972,2]
[384455675,1757424650594,-480.0,0.00013972,2]
[384455676,1757424650603,-480.0,0.00013972,2]
[384455677,1757424650612,-480.0,0.00013972,2]
[384455678,1757424650621,-317.8982504,0.00013972,2]
[384455679,1757424650630,-850.94,0.00013972,2]
[384455680,1757424650639,-480.0,0.00013972,2]
[384455681,1757424650649,-333.76312776,0.00013972,2]
[384455682,1757424650658,-480.0,0.00013972,2]
[384455683,1757424650667,-876.21,0.00013972,2]
[384455684,1757424650678,-480.0,0.00013972,2]
[384455685,1757424650690,-480.0,0.00013972,2]
[384455686,1757424650699,-480.0,0.00013972,2]
[384455687,1757424650708,-703.87,0.00013972,2]
[384455688,1757424650717,-210.68602122,0.00013972,2]
[384455689,1757424650727,-480.0,0.00013972,2]
[384455690,1757424650738,-480.0,0.00013972,2]
[384455691,1757424650747,-480.0,0.00013972,2]
[384455692,1757424650756,-480.0,0.00013972,2]
[384455693,1757424650765,-480.0,0.00013972,2]
[384455694,1757424650775,-480.0,0.00013972,2]
[384455695,1757424650784,-480.0,0.00013972,2]
[384455696,1757424650793,-737.79,0.00013972,2]
[384455697,1757424650802,-480.0,0.00013972,2]
[384455698,1757424650813,-480.0,0.00013972,2]
[384455699,1757424650822,-480.0,0.00013972,2]
[384455700,1757424650831,-480.0,0.00013972,2]
[384455701,1757424650840,-480.0,0.00013972,2]
[384455702,1757424650849,-272.65601456,0.00013972,2]
[384455703,1757424650858,-480.0,0.00013972,2]
[384455704,1757424650867,-500.0,0.00013972,2]
[384455705,1757424650877,-302.0,0.00013972,2]
[384455706,1757424650887,-500.0,0.00013972,2]
[384455707,1757424650896,-740.73,0.00013972,2]
[384455708,1757424650905,-480.0,0.00013972,2]
[384455709,1757424650914,-480.0,0.00013972,2]
[384455710,1757424650923,-480.0,0.00013972,2]
[384455711,1757424650932,-480.0,0.00013972,2]
[384455712,1757424650941,-480.0,0.00013972,2]
[384455713,1757424650951,-480.0,0.00013972,2]
[384455714,1757424650960,-822.48,0.00013972,2]
[384455715,1757424650969,-816.29,0.00013972,2]
[384455716,1757424650979,-480.0,0.00013972,2]
[384455717,1757424650988,-480.0,0.00013972,2]
[384455718,1757424650997,-480.0,0.00013972,2]
[384455719,1757424651007,-480.0,0.00013972,2]
[384455720,1757424651016,-553.94,0.00013972,2]
[384455721,1757424651025,-523.16,0.00013972,2]
[384455722,1757424651034,-480.0,0.00013972,2]
[384455723,1757424651043,-480.0,0.00013972,2]
[384455724,1757424651054,-911.18,0.00013972,2]
[384455725,1757424651064,-768.06,0.00013972,2]
[384455726,1757424651073,-480.0,0.00013972,2]
[384455727,1757424651082,-480.0,0.00013972,2]
[384455728,1757424651091,-480.0,0.00013972,2]
[384455729,1757424651102,-666.9,0.00013972,2]
[384455730,1757424651111,-631.93,0.00013972,2]
[384455731,1757424651121,-480.0,0.00013972,2]
[384455732,1757424651131,-480.0,0.00013972,2]
[384455733,1757424651140,-480.0,0.00013972,2]
[384455734,1757424651149,-480.0,0.00013972,2]
[384455735,1757424651158,-480.0,0.00013972,2]
[384455736,1757424651167,-480.0,0.00013972,2]
[384455737,1757424651176,-480.0,0.00013972,2]
[384455738,1757424651186,-480.0,0.00013972,2]
[384455739,1757424651195,-480.0,0.00013972,2]
[384455740,1757424651205,-311.27,0.00013972,2]
[384455741,1757424651214,-480.0,0.00013972,2]
[384455742,1757424651224,-989.42,0.00013972,2]
[384455743,1757424651233,-480.0,0.00013972,2]
[384455744,1757424651242,-480.0,0.00013972,2]
[384455745,1757424651252,-480.0,0.00013972,2]
[384455746,1757424651262,-480.0,0.00013972,2]
[384455747,1757424651271,-480.0,0.00013972,2]
[384455748,1757424651280,-480.0,0.00013972,2]
[384455749,1757424651291,-174.13172677,0.00013972,2]
[384455750,1757424651300,-480.0,0.00013972,2]
[384455751,1757424651309,-528.65,0.00013972,2]
[384455752,1757424651318,-480.0,0.00013972,2]
[384455753,1757424651328,-480.0,0.00013972,2]
[384455754,1757424651337,-480.0,0.00013972,2]
[384455755,1757424651347,-480.0,0.00013972,2]
[384455756,1757424651356,-480.0,0.00013972,2]
[384455757,1757424651365,-480.0,0.00013972,2]
[384455758,1757424651375,-480.0,0.00013972,2]
[384455759,1757424651384,-480.0,0.00013972,2]
[384455760,1757424651395,-480.0,0.00013972,2]
[384455761,1757424651404,-500.0,0.00013972,2]
[384455762,1757424651414,-157.0,0.00013972,2]
[384455763,1757424651424,-480.0,0.00013972,2]
[384455764,1757424651434,-480.0,0.00013972,2]
[384455765,1757424651443,-480.0,0.00013972,2]
[384455766,1757424651452,-303.55166191,0.00013972,2]
[384455767,1757424651461,-480.0,0.00013972,2]
[384455768,1757424651471,-489.98,0.00013972,2]
[384455769,1757424651480,-2076.01,0.00013972,2]
[384455770,1757424651490,-480.0,0.00013972,2]
[384455771,1757424651499,-480.0,0.00013972,2]
[384455772,1757424651508,-349.39427972,0.00013972,2]
[384455773,1757424651518,-2737.5,0.00013972,2]
[384455774,1757424651528,-480.0,0.00013972,2]
[384455775,1757424651538,-699.72,0.00013972,2]
[384455776,1757424651547,-480.0,0.00013972,2]
[384455777,1757424651556,-610.73,0.00013972,2]
[384455778,1757424651566,-686.77,0.00013972,2]
[384455779,1757424651575,-480.0,0.00013972,2]
[384455780,1757424651584,-1360.3,0.00013972,2]
[384455781,1757424651594,-480.0,0.00013972,2]
[384455782,1757424651724,-480.0,0.00013972,2]
[384455783,1757424651734,-684.89,0.00013972,2]
[384455784,1757424651744,-500.0,0.00013972,2]
[384455785,1757424651753,-157.0,0.00013972,2]
[384455786,1757424651764,-930.97,0.00013972,2]
[384455787,1757424651775,-500.0,0.00013972,2]
[384455788,1757424651785,-724.0,0.00013972,2]
[384455789,1757424651795,-500.0,0.00013972,2]
[384455790,1757424651804,-480.0,0.00013972,2]
[384455791,1757424651815,-480.0,0.00013972,2]
[384455792,1757424651824,-480.0,0.00013972,2]
[384455793,1757424651833,-480.0,0.00013972,2]
[384455794,1757424651842,-316.34889724,0.00013972,2]
[384455795,1757424651852,-484.00799729,0.00013972,2]
[384455796,1757424651861,-480.0,0.00013972,2]
[384455797,1757424651871,-642.24,0.00013972,2]
[384455798,1757424651882,-832.31,0.00013972,2]
[384455799,1757424651891,-480.0,0.00013972,2]
[384455800,1757424651906,-1567.56,0.00013972,2]
[384455801,1757424651916,-865.25,0.00013972,2]
[384455802,1757424651927,-480.0,0.00013972,2]
[384455803,1757424651937,-322.1758387,0.00013972,2]
[384455804,1757424651947,-480.0,0.00013972,2]
[384455805,1757424651957,-480.0,0.00013972,2]
[384455806,1757424651967,-510.65,0.00013972,2]
[384455807,1757424651977,-746.09,0.00013972,2]
[384455808,1757424651987,-7257.37,0.00013972,2]
[384455809,1757424651997,-480.0,0.00013972,2]
[384455810,1757424652005,-480.0,0.00013972,2]
[384455811,1757424652015,-818.69,0.00013972,2]
[384455812,1757424652027,-480.0,0.00013972,2]
[384455813,1757424652037,-480.0,0.00013972,2]
[384455814,1757424652047,-1719.71,0.00013972,2]
[384455815,1757424652056,-480.0,0.00013972,2]
[384455816,1757424652067,-480.0,0.00013972,2]
[384455817,1757424652076,-480.0,0.00013972,2]
[384455818,1757424652086,-2503.44,0.00013972,2]
[384455819,1757424652096,-1046.93,0.00013972,2]
[384455820,1757424652106,-901.45,0.00013972,2]
[384455821,1757424652115,-480.0,0.00013972,2]
[384455822,1757424652125,-480.0,0.00013972,2]
[384455823,1757424652134,-480.0,0.00013972,2]
[384455824,1757424652144,-480.0,0.00013972,2]
[384455825,1757424652153,-243.27,0.00013972,2]
[384455826,1757424652163,-480.0,0.00013972,2]
[384455827,1757424652176,-480.0,0.00013972,2]
[384455828,1757424652186,-480.0,0.00013972,2]
[384455829,1757424652195,-480.0,0.00013972,2]
[384455830,1757424652206,-480.0,0.00013972,2]
[384455831,1757424652216,-848.5,0.00013972,2]
[384455832,1757424652226,-480.0,0.00013972,2]
[384455833,1757424652237,-480.0,0.00013972,2]
[384455834,1757424652248,-711.83,0.00013972,2]
[384455835,1757424652258,-480.0,0.00013972,2]
[384455836,1757424652268,-2966.27,0.00013972,2]
[384455837,1757424652278,-480.0,0.00013972,2]
[384455838,1757424652287,-480.0,0.00013972,2]
[384455839,1757424652298,-579.99,0.00013972,2]
[384455840,1757424652307,-999.06,0.00013972,2]
[384455841,1757424652317,-480.0,0.00013972,2]
[384455842,1757424652326,-483.58928266,0.00013972,2]
[384455843,1757424652336,-480.0,0.00013972,2]
[384455844,1757424652345,-480.0,0.00013972,2]
[384455845,1757424652355,-500.0,0.00013972,2]
[384455846,1757424652364,-501.76,0.00013972,2]
[384455847,1757424652373,-500.0,0.00013972,2]
[384455848,1757424652382,-1191.62,0.00013972,2]
[384455849,1757424652391,-1060.4,0.00013972,2]
[384455850,1757424652400,-480.0,0.00013972,2]
[384455851,1757424652410,-480.0,0.00013972,2]
[384455852,1757424652419,-3798.57,0.00013972,2]
[384455853,1757424652428,-622.16,0.00013972,2]
[384455854,1757424652438,-699.3,0.00013972,2]
[384455855,1757424652447,-480.0,0.00013972,2]
[384455856,1757424652456,-1053.47,0.00013972,2]
[384455857,1757424652465,-480.0,0.00013972,2]
[384455858,1757424652475,-480.0,0.00013972,2]
[384455859,1757424652483,-1055.01,0.00013972,2]
[384455860,1757424652493,-23245.12,0.00013972,2]
[384455861,1757424652503,-1446.41,0.00013972,2]
[384455862,1757424652512,-1822.58,0.00013972,2]
[384455863,1757424652522,-480.0,0.00013972,2]
[384455864,1757424652533,-527.34,0.00013972,2]
[384455865,1757424652542,-314.16656547,0.00013972,2]
[384455866,1757424652551,-480.0,0.00013972,2]
[384455867,1757424652562,-1003.05,0.00013972,2]
[384455868,1757424652572,-480.0,0.00013972,2]
[384455869,1757424652581,-480.0,0.00013972,2]
[384455870,1757424652591,-480.0,0.00013972,2]
[384455871,1757424652600,-480.0,0.00013972,2]
[384455872,1757424652609,-754.23,0.00013972,2]
[384455873,1757424652619,-480.0,0.00013972,2]
[384455874,1757424652628,-480.0,0.00013972,2]
[384455875,1757424652638,-1052.53,0.00013972,2]
[384455876,1757424652647,-5386.23,0.00013972,2]
[384455877,1757424652657,-251.9817288,0.00013972,2]
[384455878,1757424652666,-605.15480917,0.00013972,2]
[384455879,1757424652675,-4875.75,0.00013972,2]
[384455880,1757424652689,-480.0,0.00013972,2]
[384455881,1757424652699,-480.0,0.00013972,2]
[384455882,1757424652710,-480.0,0.00013972,2]
[384455883,1757424652719,-480.0,0.00013972,2]
[384455884,1757424652728,-2091.95,0.00013972,2]
[384455885,1757424652738,-1144.03,0.00013972,2]
[384455886,1757424652747,-480.0,0.00013972,2]
[384455887,1757424652757,-491.99,0.00013972,2]
[384455888,1757424652766,-480.0,0.00013972,2]
[384455889,1757424652775,-480.0,0.00013972,2]
[384455890,1757424652785,-3029.88,0.00013972,2]
[384455891,1757424652794,-912.57,0.00013972,2]
[384455892,1757424652804,-480.0,0.00013972,2]
[384455893,1757424652814,-609.22,0.00013972,2]
[384455894,1757424652823,-480.0,0.00013972,2]
[384455895,1757424652832,-570.69,0.00013972,2]
[384455896,1757424652842,-3017.79,0.00013972,2]
[384455897,1757424652851,-359.26949437,0.00013972,2]
[384455898,1757424652860,-500.0,0.00013972,2]
[384455899,1757424652870,-500.0,0.00013973,2]
[384455900,1757424652879,-500.0,0.00013973,2]
[384455901,1757424652888,-425.66528365,0.00013973,2]
[384455902,1757424652897,-500.0,0.00013973,2]
[384455903,1757424652907,-347.04780642,0.00013973,2]
[384455904,1757424652916,-504.06962117,0.00013973,2]
[384455905,1757424652925,-500.0,0.00013973,2]
[384455906,1757424652935,-500.0,0.00013973,2]
[384455907,1757424652944,-500.0,0.00013973,2]
[384455908,1757424652954,-464.37685251,0.00013973,2]
[384455909,1757424652963,-500.0,0.00013973,2]
[384455910,1757424652972,-500.0,0.00013973,2]
[384455911,1757424652981,-502.12388561,0.00013973,2]
[384455912,1757424652990,-224.00413501,0.00013973,2]
[384455913,1757424652999,-500.85652594,0.00013973,2]
[384455914,1757424653008,-500.0,0.00013973,2]
[384455915,1757424653018,-500.0,0.00013973,2]
[384455916,1757424653026,-500.0,0.00013973,2]
[384455917,1757424653036,-513.25335453,0.00013973,2]
[384455918,1757424653045,-511.12260772,0.00013973,2]
[384455919,1757424653054,-500.0,0.00013973,2]
[384455920,1757424653064,-500.0,0.00013973,2]
[384455921,1757424653073,-500.0,0.00013973,2]
[384455922,1757424653082,-500.0,0.00013973,2]
[384455923,1757424653091,-500.0,0.00013973,2]
[384455924,1757424653100,-500.0,0.00013973,2]
[384455925,1757424653110,-500.0,0.00013973,2]
[384455926,1757424653119,-500.0,0.00013973,2]
[384455927,1757424653128,-500.0,0.00013973,2]
[384455928,1757424653137,-500.0,0.00013973,2]
[384455929,1757424653147,-500.0,0.00013973,2]
[384455930,1757424653156,-500.0,0.00013973,2]
[384455931,1757424653165,-500.0,0.00013973,2]
[384455932,1757424653174,-30939.81821038,0.0001399,2]
[384455933,1757424653183,-10008.96621565,0.00013996,2]
[384455934,1757424653192,-3000.0,0.00013999,2]
[384455935,1757424653202,-151.0,0.00014,2]
[384455936,1757424653211,-534.37537875,0.00014034,2]
[384455937,1757424653221,-10578.81621497,0.00014043,2]
[384455938,1757424653230,-17896.98574374,0.00014046,2]
[384455939,1757424653239,-3917.0,0.00014049,2]
[384455940,1757424653249,-151.0,0.000141,2]
[384455941,1757424653258,-151.0,0.000141,2]
[384455942,1757424653267,-1000.0,0.00014136,2]
[384455943,1757424653277,-1000.0,0.00014136,2]
[384455944,1757424653286,-1000.0,0.00014136,2]
[384455945,1757424653295,-1000.0,0.00014136,2]
[384455946,1757424653304,-1000.0,0.00014136,2]
[384455947,1757424653316,-1000.0,0.00014136,2]
[384455948,1757424653326,-1000.0,0.00014136,2]
[384455949,1757424653335,-1000.0,0.00014136,2]
[384455950,1757424653344,-1000.0,0.00014136,2]
[384455951,1757424653354,-1000.0,0.00014136,2]
[384455952,1757424653363,-1000.0,0.00014136,2]
[384455953,1757424653372,-1000.0,0.00014136,2]
[384455954,1757424653382,-1000.0,0.00014136,2]
[384455955,1757424653392,-1000.0,0.00014136,2]
[384455956,1757424653401,-1000.0,0.00014136,2]
[384455957,1757424653411,-1000.0,0.00014136,2]
[384455958,1757424653420,-1000.0,0.00014136,2]
[384455959,1757424653429,-1000.0,0.00014136,2]
[384455960,1757424653439,-1000.0,0.00014136,2]
[384455961,1757424653449,-1000.0,0.00014136,2]
[384455962,1757424653458,-1000.0,0.00014136,2]
[384455963,1757424653467,-1000.0,0.00014136,2]
[384455964,1757424653476,-311.23775488,0.00014136,2]
[384455965,1757424653486,-4000.0,0.00014144,2]
[384455966,1757424653496,-151.0,0.000142,2]
[384455967,1757424653505,-151.0,0.000142,2]
[384455968,1757424653514,-151.0,0.000142,2]
[384455969,1757424653524,-1057.51358697,0.00014215,2]
[384455970,1757424653533,-1000.41866127,0.00014221,2]
[384455971,1757424653542,-17260.31672571,0.00014246,2]
[384455972,1757424653551,-500.0,0.00014246,2]
[384455973,1757424653563,-500.0,0.00014246,2]
[384455974,1757424653573,-500.0,0.00014246,2]
[384455975,1757424653582,-500.0,0.00014246,2]
[384455976,1757424653592,-500.0,0.00014246,2]
[384455977,1757424653602,-157.0,0.00014246,2]
[384455978,1757424653611,-500.0,0.00014246,2]
[384455979,1757424653621,-310.51658264,0.00014246,2]
[384455980,1757424653630,-500.0,0.00014246,2]
[384455981,1757424653640,-724.0,0.00014246,2]
[384455982,1757424653649,-500.0,0.00014246,2]
[384455983,1757424653658,-500.0,0.00014246,2]
[384455984,1757424653667,-500.0,0.00014246,2]
[384455985,1757424653678,-560.0,0.00014246,2]
[384455986,1757424653690,-480.0,0.00014246,2]
[384455987,1757424653700,-480.0,0.00014246,2]
[384455988,1757424653710,-492.76,0.00014246,2]
[384455989,1757424653719,-617.77,0.00014246,2]
[384455990,1757424653730,-480.0,0.00014246,2]
[384455991,1757424653739,-480.0,0.00014246,2]
[384455992,1757424653749,-480.0,0.00014246,2]
[384455993,1757424653759,-480.0,0.00014246,2]
[384455994,1757424653770,-480.0,0.00014246,2]
[384455995,1757424653780,-480.0,0.00014246,2]
[384455996,1757424653790,-480.0,0.00014246,2]
[384455997,1757424653799,-480.0,0.00014246,2]
[384455998,1757424653808,-1424.19,0.00014246,2]
[384455999,1757424653821,-518.01,0.00014246,2]
[384456000,1757424653830,-741.34,0.00014246,2]
[384456001,1757424653838,-480.0,0.00014246,2]
[384456002,1757424653848,-480.0,0.00014246,2]
[384456003,1757424653857,-480.0,0.00014246,2]
[384456004,1757424653866,-480.0,0.00014246,2]
[384456005,1757424653875,-385.14472105,0.00014246,2]
[384456006,1757424653885,-480.0,0.00014246,2]
[384456007,1757424653894,-490.92669068,0.00014246,2]
[384456008,1757424653903,-1545.06,0.00014246,2]
[384456009,1757424653913,-480.0,0.00014246,2]
[384456010,1757424653922,-480.0,0.00014246,2]
[384456011,1757424653931,-480.0,0.00014246,2]
[384456012,1757424653941,-480.0,0.00014246,2]
[384456013,1757424653950,-480.0,0.00014246,2]
[384456014,1757424653959,-480.0,0.00014246,2]
[384456015,1757424653969,-480.0,0.00014246,2]
[384456016,1757424653979,-480.0,0.00014246,2]
[384456017,1757424653988,-480.0,0.00014246,2]
[384456018,1757424653997,-480.0,0.00014246,2]
[384456019,1757424654006,-480.0,0.00014246,2]
[384456020,1757424654016,-480.0,0.00014246,2]
[384456021,1757424654025,-480.0,0.00014246,2]
[384456022,1757424654034,-480.0,0.00014246,2]
[384456023,1757424654043,-199.03860959,0.00014246,2]
[384456024,1757424654053,-480.0,0.00014246,2]
[384456025,1757424654065,-850.94,0.00014246,2]
[384456026,1757424654074,-480.0,0.00014246,2]